fUST/lending_fUST_20240604
["ID","MTS","AMOUNT","RATE_DAILY","PERIOD"]
[328514207,1717477832352,-193.05625106,0.00022637,2]
[328514208,1717477832361,-282.51375049,0.0002266,2]
[328514209,1717477832371,-154.9690062,0.00023,2]
[328514210,1717477832381,-256.81598704,0.00023296,2]
[328514211,1717477832390,-500.0,0.00023458,7]
[328514212,1717477832399,-430.0,0.000235,2]
[328514213,1717477832409,-151.0,0.00023556,5]
[328514214,1717477832417,-10189.4199291,0.0002359,2]
[328514215,1717477832427,-153.22698641,0.00023591,2]
[328514216,1717477832436,-270.0,0.000238,2]
[328514217,1717477832445,-208.64203191,0.00023827,2]
[328514218,1717477832454,-500.0,0.00023827,2]
[328514219,1717477832463,-376.7305942,0.00023827,2]
[328514220,1717477832472,-500.0,0.00023827,2]
[328514221,1717477832481,-478.24390286,0.00023827,2]
[328514222,1717477832490,-709.63419449,0.00023827,12]
[328514223,1717477832499,-19968.60273057,0.00023828,7]
[328514224,1717477832509,-4153.29477892,0.00023828,2]
[328514225,1717477832518,-338.07129583,0.00023828,2]
[328514226,1717477832527,-724.49376246,0.00023828,2]
[328514227,1717477832536,-221.12712333,0.00023828,2]
[328514228,1717477832545,-192.67395678,0.00023828,2]
[328514229,1717477832557,-172.85014469,0.00023828,2]
[328514230,1717477832566,-156.03753279,0.00023828,2]
[328514231,1717477832575,-217.05692491,0.00023828,2]
[328514232,1717477832585,-155.9456236,0.00023828,2]
[328514233,1717477832594,-692.69846784,0.00023828,2]
[328514234,1717477832603,-234.67792306,0.00023828,2]
[328514235,1717477832612,-779.86529256,0.00023828,2]
[328514236,1717477832622,-435.0,0.00023828,2]
[328514237,1717477832631,-2071.25350855,0.00023828,2]
[328514238,1717477832641,-366.25590214,0.00023828,2]
[328514239,1717477832653,-21359.08207168,0.00023828,2]
[328514240,1717477832663,-416.27023783,0.00023828,2]
[328514241,1717477832672,-162.035132,0.00023828,2]
[328514242,1717477832681,-62620.25315185,0.00023828,2]
[328514243,1717477832690,-733.997382,0.00023828,2]
[328514244,1717477832699,-3967.80369534,0.00023828,2]
[328514245,1717477832708,-1501.87531195,0.00023828,2]
[328514246,1717477832718,-266.20177703,0.00023828,2]
[328514247,1717477832728,-276.11738886,0.00023828,2]
[328514248,1717477832738,-155.49724495,0.00023828,2]
[328514249,1717477832747,-223.06649033,0.00023828,2]
[328514250,1717477832756,-395.66131724,0.00023828,2]
[328514251,1717477832766,-2078.92744132,0.00023828,2]
[328514252,1717477832775,-1285.47529802,0.00023828,2]
[328514253,1717477832784,-151.0,0.00023828,2]
[328514254,1717477832793,-151.0,0.00023828,2]
[328514255,1717477832803,-151.0,0.00023828,2]
[328514256,1717477832815,-151.0,0.00023828,2]
[328514257,1717477832824,-151.0,0.00023828,2]
[328514258,1717477832833,-151.0,0.00023828,2]
[328514259,1717477832842,-151.0,0.00023828,2]
[328514260,1717477832851,-151.0,0.00023828,2]
[328514261,1717477832860,-230.278531,0.00023828,2]
[328514262,1717477832869,-278.604796,0.00023828,2]
[328514263,1717477832878,-278.604796,0.00023828,2]
[328514264,1717477832887,-278.604796,0.00023828,2]
[328514265,1717477832896,-278.604796,0.00023828,2]
[328514266,1717477832905,-164.800122,0.00023828,2]
[328514267,1717477832914,-151.0,0.00023828,2]
[328514268,1717477832923,-151.0,0.00023828,2]
[328514269,1717477832932,-283.071607,0.00023828,2]
[328514270,1717477832941,-283.071607,0.00023828,2]
[328514271,1717477832950,-151.0,0.00023828,2]
[328514272,1717477832959,-151.0,0.00023828,2]
[328514273,1717477832969,-283.071607,0.00023828,2]
[328514274,1717477833099,-283.071607,0.00023828,2]
[328514275,1717477833108,-151.0,0.00023828,2]
[328514276,1717477833117,-153.239835,0.00023828,2]
[328514277,1717477833126,-277.05199636,0.00023829,2]
[328514278,1717477833136,-4194.70497771,0.00023829,2]
[328514279,1717477833146,-7424.99875953,0.00023829,2]
[328514280,1717477833155,-151.0,0.00023829,2]
[328514281,1717477833164,-151.0,0.00023829,2]
[328514282,1717477833173,-151.0,0.00023829,2]
[328514283,1717477833182,-151.0,0.00023829,2]
[328514284,1717477833191,-151.0,0.00023829,2]
[328514285,1717477833201,-278.604796,0.00023829,2]
[328514286,1717477833210,-278.604796,0.00023829,2]
[328514287,1717477833219,-151.0,0.00023829,2]
[328514288,1717477833228,-283.071607,0.00023829,2]
[328514289,1717477833237,-279.82028808,0.00023829,2]
[328514290,1717477833246,-283.071607,0.00023829,2]
[328514291,1717477833255,-2930.8999786,0.0002383,2]
[328514292,1717477833264,-8853.76481214,0.0002383,2]
[328514293,1717477833274,-151.0,0.0002383,2]
[328514294,1717477833283,-151.0,0.0002383,2]
[328514295,1717477833292,-151.0,0.0002383,2]
[328514296,1717477833301,-151.0,0.0002383,2]
[328514297,1717477833310,-285.926883,0.0002383,2]
[328514298,1717477833320,-151.0,0.0002383,2]
[328514299,1717477833329,-183.708102,0.0002383,2]
[328514300,1717477833338,-278.604796,0.0002383,2]
[328514301,1717477833347,-278.604796,0.0002383,2]
[328514302,1717477833357,-282.51375049,0.0002384,2]
[328514303,1717477833366,-759.02582268,0.00024,2]
[328514323,1717477841812,-1353.96157468,0.0002,2]
[328514324,1717477841822,-320.8321418,0.00024,2]
[328514338,1717477929564,261.76097194,9.999e-05,2]
[328514352,1717478494200,154.9690062,0.0001,2]
[328514353,1717478508559,285.64268325,9.999e-05,2]
[328514354,1717478516031,206.84065548,0.0001,2]
[328514423,1717479038296,-285.64268325,0.00017999,2]
[328514424,1717479038306,-871.42279707,0.00018,2]
[328514425,1717479038318,-2024.07006233,0.00018,2]
[328514426,1717479038340,-3906.82722561,0.00018,2]
[328514442,1717479092562,1960.97611638,0.00018,7]
[328514443,1717479154231,980.48805819,0.00018,7]
[328514444,1717479167165,302.68105947,9.999e-05,2]
[328514447,1717479212609,386.87893185,0.00018,7]
[328514448,1717479212643,103.36509725,0.00018,7]
[328514458,1717479274172,245.12201455,0.00018,7]
[328514459,1717479332421,245.12201454,0.00018,7]
[328514465,1717479793084,150.0,0.00012,2]
[328514466,1717479968133,477.09344707,9.999e-05,10]
[328514470,1717480155113,-3932.66362273,0.00017559,2]
[328514535,1717480238589,-489.90459384,0.00017459,2]
[328514536,1717480238598,-6256.12975596,0.00018,2]
[328514564,1717480274693,397.57787256,0.00017999,10]
[328514566,1717480292897,383.34717418,0.00018,7]
[328514574,1717480354007,191.67358709,0.00018,7]
[328514589,1717480393710,154.9690062,9.999e-05,2]
[328514592,1717480403435,285.64268325,9.999e-05,2]
[328514595,1717480412434,191.67358708,0.00018,7]
[328514602,1717480601255,207.1380716,0.00017998,10]
[328514603,1717480612821,871.21736108,0.0001,2]
[328514604,1717480618146,155.30182414,0.00017899,7]
[328514619,1717480915776,207.1380716,0.00016972,10]
[328514620,1717481082302,154.9690062,9.999e-05,2]
[328514621,1717481109224,292.31118058,9.999e-05,2]
[328514623,1717481252305,207.1380716,0.00016435,10]
[328514660,1717481432201,-791.88365063,0.00016225,2]
[328514662,1717481432212,-24108.11634937,0.00016225,2]
[328514664,1717481432222,-293.8222249,0.00016436,2]
[328514666,1717481432231,-191.9595883,0.0001647,2]
[328514667,1717481432240,-722.7309694,0.0001649,2]
[328514668,1717481432250,-163.50039108,0.00016874,2]
[328514670,1717481432259,-659.9278516,0.00017478,2]
[328514671,1717481432268,-2060.00325646,0.00017725,2]
[328514673,1717481432277,-387.50578624,0.000178,2]
[328514675,1717481432287,-387.50578624,0.000178,2]
[328514677,1717481432296,-387.50578624,0.000178,2]
[328514678,1717481432305,-387.50578624,0.000178,2]
[328514679,1717481432314,-387.50578624,0.000178,2]
[328514680,1717481432323,-387.50578624,0.000178,2]
[328514681,1717481432332,-387.50578624,0.000178,2]
[328514682,1717481432341,-387.50578624,0.000178,2]
[328514683,1717481432350,-387.50578624,0.000178,2]
[328514684,1717481432360,-387.50578624,0.000178,2]
[328514685,1717481432369,-387.50578624,0.000178,2]
[328514686,1717481432378,-387.50578624,0.000178,2]
[328514687,1717481432387,-387.50578624,0.000178,2]
[328514688,1717481432396,-387.50578624,0.000178,2]
[328514689,1717481432405,-387.50578624,0.000178,2]
[328514690,1717481432414,-387.50578624,0.000178,2]
[328514691,1717481432423,-387.50578624,0.000178,2]
[328514692,1717481432432,-387.50578624,0.000178,2]
[328514693,1717481432441,-387.50578624,0.000178,2]
[328514694,1717481432451,-387.50578,0.000178,2]
[328514695,1717481432460,-185.6847504,0.000179,2]
[328514696,1717481432469,-8751.32807181,0.00017999,2]
[328514697,1717481432479,-8701.77377114,0.00018,2]
[328514761,1717481442143,-8161.17638789,0.00018,2]
[328514762,1717481442155,-774.23552788,0.000189,2]
[328514763,1717481442165,-162.93661136,0.00019,2]
[328514764,1717481442174,-169.556975,0.00019178,2]
[328514765,1717481442183,-172.513362,0.00019178,2]
[328514766,1717481442193,-174.894078,0.00019178,2]
[328514767,1717481442202,-185.68475037,0.00019471,2]
[328514768,1717481442213,-207.1380716,0.00019898,10]
[328514769,1717481442223,-310.58,0.0001999,3]
[328514770,1717481442232,-155.29,0.0001999,3]
[328514771,1717481442241,-465.9,0.0001999,3]
[328514772,1717481442251,-231.50402638,0.00019995,2]
[328514773,1717481442260,-500.0,0.00019995,2]
[328514774,1717481442269,-500.0,0.00019995,2]
[328514775,1717481442279,-500.0,0.00019995,2]
[328514776,1717481442288,-500.0,0.00019995,2]
[328514777,1717481442297,-500.0,0.00019995,2]
[328514778,1717481442307,-500.0,0.00019995,2]
[328514779,1717481442317,-500.0,0.00019995,2]
[328514780,1717481442327,-500.0,0.00019995,2]
[328514781,1717481442336,-500.0,0.00019995,2]
[328514782,1717481442345,-500.0,0.00019995,2]
[328514783,1717481442354,-500.0,0.00019995,2]
[328514784,1717481442364,-500.0,0.00019995,2]
[328514785,1717481442373,-500.0,0.00019995,2]
[328514786,1717481442382,-500.0,0.00019995,2]
[328514787,1717481442392,-500.0,0.00019995,2]
[328514788,1717481442401,-500.0,0.00019995,2]
[328514789,1717481442410,-482.04357889,0.00019995,2]
[328514790,1717481442419,-500.0,0.00019995,2]
[328514791,1717481442429,-500.0,0.00019995,2]
[328514792,1717481442438,-500.0,0.00019995,2]
[328514793,1717481442447,-500.0,0.00019995,2]
[328514794,1717481442457,-500.0,0.00019995,2]
[328514795,1717481442466,-500.0,0.00019995,2]
[328514796,1717481442475,-500.0,0.00019995,2]
[328514797,1717481442485,-500.0,0.00019995,2]
[328514798,1717481442495,-500.0,0.00019995,2]
[328514799,1717481442504,-500.0,0.00019995,2]
[328514800,1717481442513,-500.0,0.00019995,2]
[328514801,1717481442638,-500.0,0.00019995,2]
[328514802,1717481442647,-567.86759001,0.00019995,2]
[328514803,1717481442656,-500.0,0.00019995,2]
[328514804,1717481442665,-261.41964255,0.00019995,2]
[328514805,1717481442674,-500.0,0.00019995,2]
[328514806,1717481442683,-500.0,0.00019995,2]
[328514807,1717481442692,-12498.33173816,0.0002,2]
[328514808,1717481442701,-269.03282548,0.0002,2]
[328514809,1717481442712,-16212.6977816,0.0002,3]
[328514810,1717481442721,-151.0,0.0002,2]
[328514811,1717481442730,-190.755585,0.0002,2]
[328514812,1717481442739,-198.150125,0.0002,2]
[328514813,1717481442748,-198.150125,0.0002,2]
[328514814,1717481442758,-198.150125,0.0002,2]
[328514815,1717481442767,-198.150125,0.0002,2]
[328514816,1717481442776,-167.162878,0.0002,2]
[328514817,1717481442785,-167.162878,0.0002,2]
[328514819,1717481442794,-151.0,0.0002,2]
[328514820,1717481442803,-151.0,0.0002,2]
[328514822,1717481442812,-167.162878,0.0002,2]
[328514824,1717481442821,-167.162878,0.0002,2]
[328514825,1717481442830,-243.93224486,0.00020379,2]
[328514826,1717481442839,-243.93224486,0.00020858,2]
[328514827,1717481442848,-443.47317086,0.00020999,2]
[328514828,1717481442857,-26419.9275428,0.00021,2]
[328514829,1717481442866,-198.150125,0.00021,2]
[328514830,1717481442875,-198.150125,0.00021,2]
[328514831,1717481442883,-167.162878,0.00021,2]
[328514832,1717481442892,-243.180897,0.00021,2]
[328514833,1717481442902,-167.162878,0.00021,2]
[328514834,1717481442911,-185.68475037,0.00021043,2]
[328514835,1717481442920,-243.93224486,0.00021338,2]
[328514836,1717481442929,-621.16,0.0002136,3]
[328514837,1717481442938,-310.58,0.0002136,3]
[328514838,1717481442947,-243.93224486,0.00021817,2]
[328514839,1717481442956,-691.6636591,0.00021915,2]
[328514840,1717481442966,-484.13726031,0.00021915,2]
[328514841,1717481442975,-1449.35011663,0.00021915,2]
[328514842,1717481442984,-234.10638335,0.00021915,2]
[328514843,1717481442993,-523.742837,0.00021915,2]
[328514844,1717481443002,-687.73524254,0.00021915,2]
[328514845,1717481443011,-249.36740512,0.00021915,2]
[328514846,1717481443021,-262.68986317,0.00021916,2]
[328514848,1717481443030,-12963.69071571,0.00021917,7]
[328514849,1717481443040,-500.0,0.00021917,2]
[328514850,1717481443049,-500.0,0.00021917,2]
[328514851,1717481443060,-500.0,0.00021917,2]
[328514852,1717481443069,-500.0,0.00021917,2]
[328514853,1717481443083,-500.0,0.00021917,2]
[328514854,1717481443092,-500.0,0.00021917,2]
[328514855,1717481443101,-500.0,0.00021917,2]
[328514856,1717481443110,-500.0,0.00021917,2]
[328514857,1717481443119,-500.0,0.00021917,2]
[328514858,1717481443128,-500.0,0.00021917,2]
[328514859,1717481443137,-500.0,0.00021917,2]
[328514860,1717481443146,-500.0,0.00021917,2]
[328514861,1717481443158,-500.0,0.00021917,2]
[328514862,1717481443167,-500.0,0.00021917,2]
[328514863,1717481443176,-500.0,0.00021917,2]
[328514864,1717481443186,-500.0,0.00021917,2]
[328514865,1717481443195,-500.0,0.00021917,2]
[328514866,1717481443204,-500.0,0.00021917,2]
[328514867,1717481443215,-530.0058954,0.00021917,2]
[328514868,1717481443223,-591.0929592,0.00021917,2]
[328514869,1717481443232,-163.74608344,0.00021917,2]
[328514870,1717481443242,-500.0,0.00021917,2]
[328514871,1717481443251,-500.0,0.00021917,2]
[328514872,1717481443261,-500.0,0.00021917,2]
[328514873,1717481443272,-500.0,0.00021917,2]
[328514874,1717481443281,-500.0,0.00021917,2]
[328514875,1717481443291,-500.0,0.00021917,2]
[328514876,1717481443299,-500.0,0.00021917,2]
[328514877,1717481443309,-500.0,0.00021917,2]
[328514878,1717481443318,-500.0,0.00021917,2]
[328514879,1717481443327,-527.57260164,0.00021917,2]
[328514880,1717481443337,-250.0,0.00021917,2]
[328514881,1717481443346,-500.0,0.00021917,2]
[328514882,1717481443355,-500.0,0.00021917,2]
[328514883,1717481443365,-500.0,0.00021917,2]
[328514884,1717481443374,-500.0,0.00021917,2]
[328514885,1717481443384,-551.3107359,0.00021917,2]
[328514886,1717481443392,-500.0,0.00021917,2]
[328514887,1717481443403,-500.0,0.00021917,2]
[328514888,1717481443412,-500.0,0.00021917,2]
[328514889,1717481443421,-500.0,0.00021917,2]
[328514890,1717481443430,-500.0,0.00021917,2]
[328514891,1717481443439,-500.0,0.00021917,2]
[328514892,1717481443448,-500.0,0.00021917,2]
[328514893,1717481443458,-500.0,0.00021917,2]
[328514894,1717481443467,-500.0,0.00021917,2]
[328514895,1717481443476,-500.0,0.00021917,2]
[328514896,1717481443485,-500.0,0.00021917,2]
[328514897,1717481443494,-513.01709612,0.00021917,2]
[328514898,1717481443503,-500.0,0.00021917,2]
[328514899,1717481443512,-500.0,0.00021917,2]
[328514900,1717481443521,-500.0,0.00021917,2]
[328514901,1717481443530,-500.0,0.00021917,2]
[328514902,1717481443540,-500.0,0.00021917,2]
[328514903,1717481443548,-500.0,0.00021917,2]
[328514904,1717481443559,-500.0,0.00021917,2]
[328514905,1717481443568,-621.06303275,0.00021917,2]
[328514906,1717481443577,-522.24651971,0.00021917,2]
[328514907,1717481443586,-500.0,0.00021917,2]
[328514908,1717481443597,-500.0,0.00021917,2]
[328514909,1717481443607,-500.0,0.00021917,2]
[328514910,1717481443617,-500.0,0.00021917,2]
[328514911,1717481443626,-532.29308989,0.00021917,2]
[328514912,1717481443637,-500.0,0.00021917,2]
[328514913,1717481443646,-504.48394044,0.00021917,2]
[328514914,1717481443655,-500.0,0.00021917,2]
[328514915,1717481443664,-500.0,0.00021917,2]
[328514916,1717481443673,-500.0,0.00021917,2]
[328514917,1717481443682,-500.0,0.00021917,2]
[328514918,1717481443691,-500.0,0.00021917,2]
[328514919,1717481443700,-500.0,0.00021917,2]
[328514920,1717481443710,-500.0,0.00021917,2]
[328514921,1717481443720,-500.0,0.00021917,2]
[328514922,1717481443730,-1037.33500056,0.00021917,2]
[328514923,1717481443739,-500.0,0.00021917,2]
[328514924,1717481443748,-500.0,0.00021917,2]
[328514925,1717481443757,-500.0,0.00021917,2]
[328514926,1717481443767,-500.0,0.00021917,2]
[328514927,1717481443778,-528.93104422,0.00021917,2]
[328514928,1717481443788,-500.0,0.00021917,2]
[328514929,1717481443797,-500.65013278,0.00021917,2]
[328514930,1717481443806,-500.0,0.00021917,2]
[328514931,1717481443816,-500.0,0.00021917,2]
[328514932,1717481443825,-500.0,0.00021917,2]
[328514933,1717481443834,-413.85250886,0.00021917,2]
[328514934,1717481443844,-515.66228767,0.00021917,2]
[328514935,1717481443854,-514.17026688,0.00021917,2]
[328514936,1717481443863,-624.20134511,0.00021917,2]
[328514937,1717481443872,-500.0,0.00021917,2]
[328514938,1717481443881,-500.0,0.00021917,2]
[328514939,1717481443891,-500.0,0.00021917,2]
[328514940,1717481443899,-372.8450139,0.00021917,2]
[328514941,1717481443908,-500.0,0.00021917,2]
[328514942,1717481443917,-500.0,0.00021917,2]
[328514943,1717481443926,-385.58921281,0.00021917,2]
[328514944,1717481443935,-500.0,0.00021917,2]
[328514945,1717481443944,-500.0,0.00021917,2]
[328514946,1717481443952,-500.0,0.00021917,2]
[328514947,1717481443963,-422.70219657,0.00021917,2]
[328514948,1717481443971,-500.0,0.00021917,2]
[328514949,1717481443980,-500.0,0.00021917,2]
[328514950,1717481443989,-500.0,0.00021917,2]
[328514951,1717481443998,-500.0,0.00021917,2]
[328514952,1717481444007,-500.0,0.00021917,2]
[328514953,1717481444016,-500.0,0.00021917,2]
[328514954,1717481444025,-500.0,0.00021917,2]
[328514955,1717481444034,-500.0,0.00021917,2]
[328514956,1717481444044,-683.41,0.00021917,2]
[328514957,1717481444053,-500.0,0.00021917,2]
[328514958,1717481444062,-507.72804934,0.00021917,2]
[328514959,1717481444072,-500.0,0.00021917,2]
[328514960,1717481444085,-500.0,0.00021917,2]
[328514961,1717481444094,-500.0,0.00021917,2]
[328514962,1717481444103,-500.0,0.00021917,2]
[328514963,1717481444112,-500.0,0.00021917,2]
[328514964,1717481444122,-563.5,0.00021917,2]
[328514965,1717481444131,-500.0,0.00021917,2]
[328514966,1717481444141,-500.0,0.00021917,2]
[328514967,1717481444150,-500.0,0.00021917,2]
[328514968,1717481444161,-500.0,0.00021917,2]
[328514969,1717481444171,-172.17949139,0.00021917,2]
[328514970,1717481444180,-531.56622973,0.00021917,2]
[328514971,1717481444189,-500.0,0.00021917,2]
[328514972,1717481444198,-500.0,0.00021917,2]
[328514973,1717481444207,-500.0,0.00021917,2]
[328514974,1717481444217,-510.45155311,0.00021917,2]
[328514975,1717481444227,-500.0,0.00021917,2]
[328514976,1717481444236,-465.93212605,0.00021917,2]
[328514977,1717481444245,-500.0,0.00021917,2]
[328514978,1717481444254,-500.0,0.00021917,2]
[328514979,1717481444264,-500.0,0.00021917,2]
[328514980,1717481444273,-500.0,0.00021917,2]
[328514981,1717481444282,-513.47,0.00021917,2]
[328514982,1717481444292,-500.0,0.00021917,2]
[328514983,1717481444301,-560.14852429,0.00021917,2]
[328514984,1717481444310,-500.0,0.00021917,2]
[328514985,1717481444319,-477.65078343,0.00021917,2]
[328514986,1717481444328,-500.0,0.00021917,2]
[328514987,1717481444337,-500.0,0.00021917,2]
[328514988,1717481444346,-500.0,0.00021917,2]
[328514989,1717481444355,-500.0,0.00021917,2]
[328514990,1717481444364,-500.0,0.00021917,2]
[328514991,1717481444374,-500.0,0.00021917,2]
[328514992,1717481444382,-500.0,0.00021917,2]
[328514993,1717481444391,-500.0,0.00021917,2]
[328514994,1717481444401,-500.0,0.00021917,2]
[328514995,1717481444410,-500.0,0.00021917,2]
[328514996,1717481444419,-510.54717067,0.00021917,2]
[328514997,1717481444428,-500.0,0.00021917,2]
[328514998,1717481444437,-500.0,0.00021917,2]
[328514999,1717481444446,-500.0,0.00021917,2]
[328515000,1717481444455,-500.0,0.00021917,2]
[328515001,1717481444465,-500.0,0.00021917,2]
[328515002,1717481444474,-500.0,0.00021917,2]
[328515003,1717481444485,-500.0,0.00021917,2]
[328515004,1717481444495,-500.0,0.00021917,2]
[328515005,1717481444504,-500.0,0.00021917,2]
[328515006,1717481444514,-500.0,0.00021917,2]
[328515007,1717481444523,-500.0,0.00021917,2]
[328515008,1717481444532,-500.0,0.00021917,2]
[328515009,1717481444542,-500.0,0.00021917,2]
[328515010,1717481444551,-500.0,0.00021917,2]
[328515011,1717481444560,-500.0,0.00021917,2]
[328515012,1717481444570,-500.0,0.00021917,2]
[328515013,1717481444578,-500.0,0.00021917,2]
[328515014,1717481444587,-500.0,0.00021917,2]
[328515015,1717481444597,-500.0,0.00021917,2]
[328515016,1717481444606,-500.0,0.00021917,2]
[328515017,1717481444615,-500.0,0.00021917,2]
[328515018,1717481444624,-500.0,0.00021917,2]
[328515019,1717481444634,-500.0,0.00021917,2]
[328515020,1717481444643,-200.0,0.00021917,2]
[328515021,1717481444652,-500.0,0.00021917,2]
[328515022,1717481444661,-500.0,0.00021917,2]
[328515023,1717481444671,-500.0,0.00021917,2]
[328515024,1717481444680,-500.0,0.00021917,2]
[328515025,1717481444689,-500.0,0.00021917,2]
[328515026,1717481444699,-500.0,0.00021917,2]
[328515027,1717481444708,-500.0,0.00021917,2]
[328515028,1717481444718,-500.0,0.00021917,2]
[328515029,1717481444727,-885.72,0.00021917,2]
[328515030,1717481444735,-885.72,0.00021917,2]
[328515031,1717481444745,-885.72,0.00021917,2]
[328515032,1717481444754,-500.0,0.00021917,2]
[328515033,1717481444763,-885.72,0.00021917,2]
[328515034,1717481444772,-500.0,0.00021917,2]
[328515035,1717481444781,-885.72,0.00021917,2]
[328515036,1717481444789,-500.0,0.00021917,2]
[328515037,1717481444799,-885.72,0.00021917,2]
[328515038,1717481444808,-885.72,0.00021917,2]
[328515039,1717481444817,-885.72,0.00021917,2]
[328515040,1717481444826,-885.72,0.00021917,2]
[328515041,1717481444835,-500.0,0.00021917,2]
[328515042,1717481444844,-500.0,0.00021917,2]
[328515043,1717481444853,-500.0,0.00021917,2]
[328515044,1717481444862,-500.0,0.00021917,2]
[328515045,1717481444871,-501.16928298,0.00021917,2]
[328515046,1717481444881,-502.69287207,0.00021917,2]
[328515047,1717481444890,-500.0,0.00021917,2]
[328515048,1717481444899,-500.0,0.00021917,2]
[328515049,1717481444908,-500.0,0.00021917,2]
[328515050,1717481444917,-500.0,0.00021917,2]
[328515051,1717481444926,-500.0,0.00021917,2]
[328515052,1717481444936,-500.0,0.00021917,2]
[328515053,1717481444945,-502.87088304,0.00021917,2]
[328515054,1717481444954,-500.0,0.00021917,2]
[328515055,1717481444964,-500.0,0.00021917,2]
[328515056,1717481444973,-500.0,0.00021917,2]
[328515057,1717481444982,-500.0,0.00021917,2]
[328515058,1717481444992,-500.0,0.00021917,2]
[328515059,1717481445001,-500.0,0.00021917,2]
[328515060,1717481445010,-500.0,0.00021917,2]
[328515061,1717481445020,-500.0,0.00021917,2]
[328515062,1717481445029,-500.0,0.00021917,2]
[328515063,1717481445039,-208.71152214,0.00021917,2]
[328515064,1717481445048,-500.0,0.00021917,2]
[328515065,1717481445057,-500.0,0.00021917,2]
[328515066,1717481445066,-500.0,0.00021917,2]
[328515067,1717481445079,-500.0,0.00021917,2]
[328515068,1717481445089,-500.0,0.00021917,2]
[328515069,1717481445099,-500.0,0.00021917,2]
[328515070,1717481445109,-500.0,0.00021917,2]
[328515071,1717481445119,-500.0,0.00021917,2]
[328515072,1717481445225,-500.0,0.00021917,2]
[328515073,1717481445235,-500.0,0.00021917,2]
[328515074,1717481445246,-500.0,0.00021917,2]
[328515075,1717481445255,-500.0,0.00021917,2]
[328515076,1717481445265,-500.0,0.00021917,2]
[328515077,1717481445274,-500.0,0.00021917,2]
[328515078,1717481445286,-500.0,0.00021917,2]
[328515079,1717481445296,-500.0,0.00021917,2]
[328515080,1717481445306,-500.0,0.00021917,2]
[328515081,1717481445315,-500.0,0.00021917,2]
[328515082,1717481445324,-500.0,0.00021917,2]
[328515083,1717481445334,-500.0,0.00021917,2]
[328515084,1717481445343,-490.97666703,0.00021917,2]
[328515085,1717481445352,-504.74259681,0.00021917,2]
[328515086,1717481445361,-216.10189189,0.00021917,2]
[328515087,1717481445370,-500.0,0.00021917,2]
[328515088,1717481445380,-500.0,0.00021917,2]
[328515089,1717481445389,-500.0,0.00021917,2]
[328515090,1717481445399,-500.0,0.00021917,2]
[328515091,1717481445408,-500.0,0.00021917,2]
[328515092,1717481445417,-500.0,0.00021917,2]
[328515093,1717481445427,-282.24918637,0.00021917,2]
[328515094,1717481445436,-500.0,0.00021917,2]
[328515095,1717481445445,-500.0,0.00021917,2]
[328515097,1717481445454,-382.5779979,0.00021917,2]
[328515099,1717481445464,-336.04136083,0.00021917,2]
[328515100,1717481445473,-500.0,0.00021917,2]
[328515101,1717481445482,-500.0,0.00021917,2]
[328515102,1717481445491,-500.0,0.00021917,2]
[328515103,1717481445500,-501.86785387,0.00021917,2]